bitfinex/quotes_ETHUSD_20251201
["timestamp","ask_amount","ask_price","bid_price","bid_amount"]
[1764557950228,1.39229465,2844.1,2844.0,0.4887]
[1764557951304,5.25902538,2844.1,2844.0,0.4887]
[1764557952508,4.27684142,2844.1,2844.0,0.9766]
[1764557952704,4.50284142,2844.1,2844.0,0.9766]
[1764557953102,3.51782193,2844.3,2844.0,0.9766]
[1764557953303,0.002,2844.3,2844.2,0.6476]
[1764557953620,0.002,2844.3,2844.2,1.78121874]
[1764557953818,0.002,2844.3,2844.2,2.26911874]
[1764557954412,3.55300007,2844.3,2844.2,0.4877]
[1764557955120,3.55300007,2844.3,2844.0,0.4889]
[1764557955121,7.89178356,2844.3,2844.0,0.001]
[1764557955434,3.51605077,2844.1,2844.0,0.001]
[1764557955733,3.90192727,2844.1,2844.0,0.001]
[1764557955934,0.405504,2843.7,2843.1,0.001]
[1764557956232,1.94017807,2843.7,2843.1,0.001]
[1764557956432,2.41877807,2843.7,2843.1,0.1609]
[1764557957514,5.93532341,2843.7,2843.1,0.1609]
[1764557957714,11.91444033,2843.7,2843.1,0.1609]
[1764557957903,14.53226848,2843.7,2843.1,0.1609]
[1764557958437,7.84855156,2843.7,2843.1,0.1609]
[1764557959539,7.4978716,2843.7,2843.1,0.1609]
[1764557959740,7.84855156,2843.7,2843.1,0.1609]
[1764557960225,7.84855156,2843.7,2843.5,0.001]
[1764557966119,0.405504,2843.3,2843.1,0.001]
[1764557966325,1.97817461,2843.2,2843.1,0.001]
[1764557966610,2.45627461,2843.2,2843.1,0.001]
[1764557968216,5.97343836,2843.2,2843.1,0.001]
[1764557972158,5.71224182,2843.2,2843.1,0.001]
[1764557972357,6.73782417,2843.2,2843.1,0.001]
[1764557972527,6.70262763,2843.2,2843.1,0.001]
[1764557973253,5.99852763,2843.2,2843.1,0.001]
[1764557973453,6.25972417,2843.2,2843.1,0.001]
[1764557973754,6.73782417,2843.2,2843.1,0.001]
[1764557973958,1.07627407,2843.2,2843.1,0.4769]
[1764557974133,1.55117996,2843.2,2843.1,0.001]
[1764557974455,9.90444182,2843.2,2843.1,0.001]
[1764557975049,9.90444182,2843.2,2843.0,0.001]
[1764557975050,13.46949907,2843.1,2843.0,0.001]
[1764557975256,15.70211803,2843.1,2843.0,0.001]
[1764557976153,19.47269203,2843.1,2843.0,0.001]
[1764557976460,23.13094542,2843.1,2843.0,0.001]
[1764557976654,1.13109811,2842.9,2842.8,0.001]
[1764557976867,16.2154163,2842.9,2842.1,0.001]
[1764557977059,9.80822972,2842.2,2842.1,0.001]
[1764557977256,10.03422972,2842.2,2842.1,0.001]
[1764557977442,10.51232972,2842.2,2842.1,0.001]
[1764557978470,14.03073095,2842.2,2842.1,0.001]
[1764557983369,5.9160793,2842.2,2842.1,0.001]
[1764557983570,6.90881113,2842.2,2842.1,0.001]
[1764557983872,6.87361459,2842.2,2842.1,0.001]
[1764557984654,6.39551459,2842.2,2842.1,0.001]
[1764557984858,6.43071113,2842.2,2842.1,0.001]
[1764557985176,6.90881113,2842.2,2842.1,0.001]
[1764557985386,5.55221059,2842.2,2842.1,0.6314]
[1764557985592,5.81340713,2842.2,2842.1,0.6314]
[1764557985758,6.21891113,2842.2,2842.1,0.6314]
[1764557986077,6.21891113,2842.2,2842.1,0.4769]
[1764557986488,6.21891113,2842.2,2842.1,0.001]
[1764557986489,12.91416088,2842.2,2842.1,0.001]
[1764557986647,13.37536434,2842.2,2842.1,0.001]
[1764557987083,20.54871409,2842.2,2842.1,0.001]
[1764557988284,0.2089,2842.0,2841.3,0.003]
[1764557988457,8.85442782,2841.7,2841.3,0.003]
[1764557988658,8.95442782,2841.7,2841.3,0.003]
[1764557988864,12.95154812,2841.7,2841.3,0.003]
[1764557989386,16.55654812,2841.7,2841.3,0.003]
[1764557989595,17.42465341,2841.7,2841.3,0.003]
[1764557990401,18.9590157,2841.7,2841.3,0.003]
[1764557991771,5.68939966,2841.7,2841.6,0.4769]
[1764557991970,5.7245962,2841.7,2841.6,0.001]
[1764557992161,6.2209962,2841.7,2841.6,0.001]
[1764557992789,6.1301002,2841.7,2841.6,0.4665]
[1764557994362,6.1301002,2841.7,2841.6,0.001]
[1764557995263,6.6024002,2841.7,2841.6,0.001]
[1764557996580,5.9041002,2841.7,2841.6,0.4665]
[1764557996762,5.26199491,2841.7,2841.6,0.4665]
[1764557998897,5.26199491,2841.7,2841.6,0.001]
[1764558000195,5.26199491,2841.7,2841.6,0.4665]
[1764558000392,5.73429491,2841.7,2841.6,0.001]
[1764558000598,7.51011444,2841.7,2841.6,0.001]
[1764558000795,7.4749179,2841.7,2841.6,0.001]
[1764558001504,18.95884998,2841.7,2841.6,0.001]
[1764558001706,18.95884998,2841.7,2841.1,0.001]
[1764558001707,4.78127407,2841.2,2841.1,0.001]
[1764558001925,4.78127407,2841.2,2841.1,0.1587]
[1764558001926,1.64109166,2841.2,2841.1,0.1587]
[1764558002204,0.95159411,2841.2,2841.1,0.6242]
[1764558002377,0.98679065,2841.2,2841.1,0.6242]
[1764558002580,0.98679065,2841.2,2841.1,1.1054]
[1764558002897,0.95159411,2841.2,2841.1,1.1054]
[1764558003123,0.98679065,2841.2,2841.1,1.1054]
[1764558003470,0.95159411,2841.2,2841.1,0.6242]
[1764558003701,4.28043023,2841.2,2841.1,1.1054]
[1764558003889,4.50643023,2841.2,2841.1,1.1054]
[1764558004092,4.85711019,2841.2,2841.1,1.1054]
[1764558004297,4.50643023,2841.2,2841.1,1.1054]
[1764558004668,6.10027716,2841.2,2841.1,0.001]
[1764558004873,6.57257716,2841.2,2841.1,0.001]
[1764558005588,6.10027716,2841.2,2841.1,0.001]
[1764558005975,4.28043023,2841.2,2841.1,1.1054]
[1764558006175,4.85711019,2841.2,2841.1,1.1054]
[1764558006473,4.85711019,2841.2,2841.1,0.6242]
[1764558007270,4.85711019,2841.2,2841.1,0.001]
[1764558007271,5.73491419,2841.2,2841.1,0.001]
[1764558007472,7.89179877,2841.2,2841.1,0.001]
[1764558007690,7.85660223,2841.2,2841.1,0.001]
[1764558008408,8.33640223,2841.2,2841.1,0.001]
[1764558008918,7.85660223,2841.2,2841.1,0.001]
[1764558009414,7.38430223,2841.2,2841.1,0.001]
[1764558009598,4.82191365,2841.2,2841.1,0.6242]
[1764558009788,4.13151608,2841.2,2841.1,0.6242]
[1764558009990,3.78083612,2841.2,2841.1,0.001]
[1764558010297,4.13151608,2841.2,2841.1,0.4665]
[1764558010654,4.85711019,2841.2,2841.1,0.4665]
[1764558011891,4.85711019,2841.2,2841.1,0.1977]
[1764558012287,0.72559411,2841.1,2840.6,0.362]
[1764558012478,1.07627407,2841.1,2840.6,0.362]
[1764558012679,1.07627407,2841.1,2841.0,0.363]
[1764558013610,1.11147061,2841.1,2841.0,0.363]
[1764558014039,3.65890154,2841.1,2841.0,0.001]
[1764558014214,6.22656501,2841.1,2841.0,0.001]
[1764558014448,4.28055412,2841.1,2841.0,0.725]
[1764558014625,4.47135758,2841.1,2841.0,0.4722]
[1764558015566,4.50655412,2841.1,2841.0,0.4722]
[1764558015774,4.50655412,2841.1,2841.0,0.1102]
[1764558016266,4.28055412,2841.1,2841.0,0.1102]
[1764558016424,4.50655412,2841.1,2841.0,0.2204]
[1764558016626,4.50655412,2841.1,2841.0,0.1102]
[1764558016846,4.85723408,2841.1,2841.0,0.1102]
[1764558017355,4.50655412,2841.1,2841.0,0.1102]
[1764558017541,4.85723408,2841.1,2841.0,0.1102]
[1764558018882,4.50655412,2841.1,2841.0,0.1102]
[1764558019060,4.85723408,2841.1,2841.0,0.1102]
[1764558019258,8.87489755,2841.1,2840.8,0.001]
[1764558019470,0.35067996,2840.9,2840.8,0.001]
[1764558019680,0.3858765,2840.9,2840.8,0.001]
[1764558020147,0.8837765,2840.9,2840.8,0.001]
[1764558020353,5.53488587,2840.9,2840.8,0.001]
[1764558020587,7.16258254,2840.9,2840.8,0.001]
[1764558020884,7.607686,2840.9,2840.8,0.001]
[1764558022282,11.312686,2840.9,2840.8,0.001]
[1764558023291,7.607686,2840.9,2840.8,0.001]
[1764558023586,6.658186,2840.9,2840.8,0.001]
[1764558023954,7.133186,2840.9,2840.8,0.001]
[1764558024282,7.589986,2840.9,2840.8,0.001]
[1764558024578,11.294986,2840.9,2840.8,0.001]
[1764558025356,10.838186,2840.9,2840.8,0.001]
[1764558025555,6.907186,2840.9,2840.8,0.001]
[1764558025774,11.294986,2840.9,2840.8,0.001]
[1764558026368,10.363186,2840.9,2840.8,0.001]
[1764558026584,10.838186,2840.9,2840.8,0.001]
[1764558028088,6.907186,2840.9,2840.8,0.001]
[1764558028282,7.133186,2840.9,2840.8,0.001]
[1764558029200,6.658186,2840.9,2840.8,0.1112]
[1764558029677,3.52001126,2840.9,2840.8,0.2214]
[1764558029882,3.7812078,2840.9,2840.8,0.2214]
[1764558030077,4.50680191,2840.9,2840.8,0.2214]
[1764558030282,4.85748187,2840.9,2840.8,0.1112]
[1764558030806,4.50680191,2840.9,2840.8,0.2214]
[1764558031313,4.50680191,2840.9,2840.8,0.1112]
[1764558031503,4.28080191,2840.9,2840.8,0.2214]
[1764558031695,3.74501126,2840.9,2840.8,0.2214]
[1764558032009,4.50580191,2840.9,2840.8,0.2214]
[1764558032209,0.225,2840.9,2840.8,0.2214]
[1764558032580,1.69144131,2841.0,2840.8,0.2214]
[1764558032780,1.69144131,2841.0,2840.9,0.2204]
[1764558032980,1.91644131,2841.0,2840.9,0.2204]
[1764558033908,1.69144131,2841.0,2840.9,0.5945563]
[1764558034430,1.69144131,2841.0,2840.9,0.2204]
[1764558034937,0.002,2841.0,2840.9,0.2204]
[1764558035911,3.52188736,2841.0,2840.9,0.2204]
[1764558036122,3.52188736,2841.0,2840.9,0.1102]
[1764558036330,3.52188736,2841.0,2840.9,0.2204]
[1764558037450,0.002,2841.0,2840.9,0.2204]
[1764558037660,0.227,2841.0,2840.9,0.2204]
[1764558038498,0.002,2841.0,2840.9,0.2204]
[1764558039339,0.002,2841.0,2840.9,0.59455799]
[1764558039504,0.002,2841.0,2840.9,0.2204]
[1764558043052,0.002,2841.0,2840.9,0.25560011]
[1764558043244,0.002,2841.0,2840.9,3.74041126]
[1764558043427,0.002,2841.0,2840.9,3.77561137]
[1764558043628,0.002,2841.0,2840.9,3.74041126]
[1764558043824,0.002,2841.0,2840.9,5.08033364]
[1764558044056,0.002,2841.0,2840.9,1.56032238]
[1764558044355,0.002,2841.0,2840.9,0.2204]
[1764558046552,0.227,2841.0,2840.9,0.2204]
[1764558047447,3.74688736,2841.0,2840.9,0.1102]
[1764558047956,0.227,2841.0,2840.9,0.1102]
[1764558048157,0.227,2841.0,2840.9,0.2204]
[1764558048333,0.227,2841.0,2840.9,0.1102]
[1764558049064,0.227,2841.0,2840.9,0.2204]
[1764558049364,0.227,2841.0,2840.9,0.1102]
[1764558049365,3.74688736,2841.0,2840.9,0.1102]
[1764558049866,7.74577472,2841.0,2840.8,0.001]
[1764558050334,7.26677472,2841.0,2840.8,0.001]
[1764558050662,3.74688736,2841.0,2840.9,0.001]
[1764558053049,5.46199325,2841.0,2840.9,0.001]
[1764558053257,6.18758736,2841.0,2840.9,0.001]
[1764558054359,6.18758736,2841.0,2840.9,0.1112]
[1764558054360,0.002,2841.0,2840.9,0.1112]
[1764558054533,3.74688736,2841.0,2840.9,0.1112]
[1764558055258,0.002,2841.0,2840.9,0.1112]
[1764558055458,0.227,2841.0,2840.9,0.2214]
[1764558055658,0.002,2841.0,2840.9,0.2214]
[1764558055860,3.74688736,2841.0,2840.9,0.1112]
[1764558056584,3.74688736,2841.0,2840.9,0.001]
[1764558058470,3.74688736,2841.0,2840.9,0.1112]
[1764558058645,0.227,2841.0,2840.9,0.1112]
[1764558059272,0.002,2841.0,2840.9,0.2214]
[1764558059636,0.002,2841.0,2840.9,4.827248]
[1764558059865,0.002,2841.0,2840.9,5.31359294]
[1764558060482,0.002,2841.0,2840.9,7.1547362]
[1764558061237,0.002,2841.0,2840.9,4.2277562]
[1764558061588,0.002,2841.0,2840.9,28.00959844]
[1764558061777,0.002,2841.0,2840.9,26.19707833]
[1764558062684,0.002,2841.0,2840.9,23.87620233]
[1764558062981,0.00107207,2841.3,2841.2,5.467945]
[1764558063177,0.00107207,2841.3,2841.2,6.0257595]
[1764558063382,0.00107207,2841.3,2841.2,0.7782145]
[1764558063577,0.00107207,2841.3,2841.2,0.2204]
[1764558064276,0.00107207,2841.3,2841.2,6.31101958]
[1764558064489,0.00107207,2841.3,2841.2,3.62983958]
[1764558064694,0.00107207,2841.3,2841.2,3.74003958]
[1764558065064,0.00107207,2841.3,2841.2,3.62983958]
[1764558065289,0.00107207,2841.3,2841.2,0.89771936]
[1764558065595,0.00107207,2841.3,2840.9,0.48734494]
[1764558065596,0.93987207,2841.3,2840.9,0.001]
[1764558065900,0.4546,2841.0,2840.9,0.001]
[1764558066192,0.6796,2841.0,2840.9,0.001]
[1764558066358,0.225,2841.0,2840.9,0.001]
[1764558066784,0.225,2841.0,2840.9,0.1112]
[1764558068304,0.00107207,2841.3,2840.9,0.2214]
[1764558068488,0.00107207,2841.3,2841.2,27.12132758]
[1764558068792,0.00107207,2841.3,2841.2,29.22550922]
[1764558069097,0.00107207,2841.3,2841.2,24.93652522]
[1764558069281,0.225,2842.2,2841.3,0.6636]
[1764558069488,0.225,2842.2,2841.8,0.4649]
[1764558070295,0.002,2841.6,2841.5,0.4834]
[1764558070659,0.002,2841.6,2841.5,1.3701154]
[1764558070864,0.002,2841.6,2841.5,0.9483]
[1764558072392,0.002,2841.6,2840.9,0.001]
[1764558072393,0.4566,2841.6,2840.9,0.4844]
[1764558072599,3.51926799,2841.5,2841.1,0.0832]
[1764558072764,3.97578268,2841.6,2841.2,0.03519639]
[1764558072963,0.002,2841.6,2841.5,0.4649]
[1764558073494,0.002,2841.6,2841.5,0.9483]
[1764558074092,3.52114414,2841.6,2841.5,0.9483]
[1764558074297,3.52114414,2841.6,2841.3,0.03519515]
[1764558074483,0.002,2841.6,2841.3,0.51859515]
[1764558074865,7.03779294,2841.8,2841.3,0.03519515]
[1764558074866,7.52166148,2841.8,2841.3,0.03519515]
[1764558075063,7.52166148,2841.8,2841.4,0.03519391]
[1764558075260,12.18600437,2841.8,2841.1,0.0832]
[1764558075498,0.4842,2841.7,2841.1,0.03519763]
[1764558075703,7.03746148,2841.8,2841.1,0.60179763]
[1764558076563,11.04055795,2841.8,2841.1,0.0832]
[1764558076896,0.002,2841.9,2841.7,0.4649]
[1764558077194,3.74578069,2841.9,2841.2,0.4834]
[1764558077401,7.26456138,2841.9,2841.3,0.40863635]
[1764558077598,3.74578069,2841.9,2841.3,0.40863635]
[1764558078062,7.26456138,2841.9,2841.3,0.40863635]
[1764558078265,0.4546,2841.4,2840.9,0.001]
[1764558078493,0.225,2841.3,2840.9,0.001]
[1764558078701,7.03927916,2841.2,2840.9,0.001]
[1764558078899,7.52347916,2841.2,2840.9,0.001]
[1764558079766,4.00383958,2841.2,2840.9,0.001]
[1764558080063,0.4546,2841.0,2840.9,0.001]
[1764558080469,0.9388,2841.0,2840.9,0.001]
[1764558080719,5.18428147,2841.0,2840.9,0.001]
[1764558080996,6.40532876,2841.0,2840.9,0.001]
[1764558081166,6.0546488,2841.0,2840.9,0.001]
[1764558081371,6.40532876,2841.0,2840.9,0.001]
[1764558081704,6.95187921,2841.0,2840.9,0.001]
[1764558081905,0.405504,2840.6,2840.3,0.001]
[1764558082124,0.72559411,2839.8,2838.0,0.1802]
[1764558082287,0.35067996,2839.2,2838.1,0.0008]
[1764558082482,0.225,2839.1,2838.1,0.14107929]
[1764558082708,0.35067996,2838.7,2838.1,0.14107929]
[1764558082988,0.6388,2838.2,2837.5,0.1968]
[1764558083235,0.225,2838.1,2837.5,0.1976]
[1764558083704,0.225,2838.1,2837.6,0.03524104]
[1764558084017,0.225,2838.1,2837.5,0.6592]
[1764558084182,0.225,2838.1,2837.0,0.1802]
[1764558084385,0.7094,2838.1,2837.1,0.03524725]
[1764558084918,3.74860817,2838.0,2837.2,0.42215971]
[1764558085216,3.74860817,2838.0,2837.3,0.03524477]
[1764558085620,0.225,2838.2,2837.9,0.4752]
[1764558085819,0.225,2838.2,2838.0,0.4752]
[1764558085995,0.225,2838.2,2837.5,0.03524229]
[1764558086186,0.4678,2839.3,2838.1,0.672]
[1764558086388,0.225,2839.2,2838.5,0.4752]
[1764558086602,3.7471189,2839.2,2838.5,0.4752]
[1764558086807,7.2692378,2839.2,2838.5,0.4752]
[1764558086994,3.7471189,2839.2,2838.6,0.03522863]
[1764558087196,0.225,2839.2,2838.6,0.03522863]
[1764558087488,0.225,2839.1,2838.5,0.4813]
[1764558087787,0.225,2839.1,2838.6,0.43566715]
[1764558087983,0.0839,2839.7,2839.0,0.4752]
[1764558088187,0.225,2840.1,2839.1,0.71382242]
[1764558088409,0.95059411,2840.1,2839.1,0.6786]
[1764558088620,0.225,2840.1,2838.6,2.18393702]
[1764558088792,7.04250148,2839.9,2838.8,3.52261518]
[1764558089117,3.52125074,2839.9,2838.9,0.4813]
[1764558089320,3.70565074,2839.9,2838.9,0.4813]
[1764558089532,3.70565074,2839.9,2838.7,3.85419959]
[1764558089737,0.4678,2839.8,2838.8,0.42546381]
[1764558089905,0.4678,2839.8,2838.9,0.03522491]
[1764558090637,3.70565074,2839.9,2839.0,0.4813]
[1764558090821,3.70565074,2839.9,2839.1,0.03522242]
[1764558091024,3.52117414,2840.0,2839.1,0.23252242]
[1764558091210,0.225,2840.1,2839.2,8.60420153]
[1764558091399,0.225,2840.1,2839.9,0.4752]
[1764558091604,0.225,2840.1,2840.0,0.4752]
[1764558091805,0.225,2840.1,2839.3,2.10463579]
[1764558091806,0.225,2840.1,2839.3,2.06941585]
[1764558092237,0.225,2840.1,2839.4,0.4813]
[1764558093302,3.74608975,2840.1,2839.4,0.4813]
[1764558093508,7.7349795,2840.1,2839.5,0.55913487]
[1764558093703,7.2671795,2840.1,2839.3,0.4813]
[1764558093937,3.74608975,2840.1,2839.4,0.0352187]
[1764558094138,7.2671795,2840.1,2839.4,0.0352187]
[1764558094340,3.52285349,2840.3,2839.4,0.5165187]
[1764558094537,0.225,2840.0,2839.4,0.4813]
[1764558095240,0.002,2840.3,2839.9,0.4752]
[1764558095411,0.225,2840.2,2839.6,3.52156604]
[1764558095614,0.225,2840.2,2839.7,0.3521566]
[1764558095810,0.225,2840.2,2839.7,0.8334566]
[1764558096114,3.74598003,2840.2,2839.7,0.8334566]
[1764558096334,0.4678,2840.1,2839.2,3.74709806]
[1764558096513,0.4678,2840.1,2839.2,4.22839806]
[1764558096914,0.4678,2840.1,2839.2,4.00339806]
[1764558097314,0.4678,2840.1,2839.3,0.03521994]
[1764558097514,0.4678,2840.1,2839.1,0.1973]
[1764558097515,3.94250476,2840.0,2838.8,0.42546381]
[1764558097740,7.04225352,2840.0,2838.9,0.4813]
[1764558097948,0.8772,2839.9,2838.9,0.4813]
[1764558098461,0.4678,2839.8,2838.9,0.4813]
[1764558099657,3.74639869,2839.8,2839.0,3.5575907]
[1764558099820,3.74639869,2839.8,2839.1,0.75612592]
[1764558100023,3.74639869,2839.8,2839.1,1.43472592]
[1764558100024,0.225,2839.8,2839.1,1.43472592]
[1764558100352,0.225,2840.0,2839.7,0.4752]
[1764558100552,0.225,2840.0,2839.8,0.4752]
[1764558100739,0.002,2840.3,2839.8,0.4752]
[1764558100940,0.227,2840.3,2839.9,0.4752]
[1764558101562,0.227,2840.3,2839.9,0.9565]
[1764558102072,0.227,2840.3,2840.0,0.44778223]
[1764558102274,3.74775678,2840.3,2840.0,0.44778223]
[1764558102580,0.227,2840.3,2840.0,0.44778223]
[1764558105760,3.74777686,2840.3,2840.0,0.44778223]
[1764558105964,3.74777686,2840.3,2839.7,3.55660615]
[1764558106764,0.227,2840.3,2839.7,4.03790615]
[1764558107270,0.227,2840.3,2840.2,0.4752]
[1764558107436,0.002,2840.3,2840.2,0.4752]
[1764558107641,0.002,2840.3,2840.2,0.9565]
[1764558107837,0.002,2840.3,2840.2,5.40772997]
[1764558108370,0.002,2840.3,2840.2,4.92642997]
[1764558108571,0.002,2840.3,2840.2,5.40772997]
[1764558110171,0.002,2840.3,2840.2,11.07016097]
[1764558110541,0.002,2840.3,2840.2,11.29516097]
[1764558110961,0.002,2840.3,2840.2,10.88965697]
[1764558111162,0.002,2840.3,2840.2,4.92642997]
[1764558111372,0.002,2840.3,2840.2,5.40772997]
[1764558111538,0.002,2840.3,2840.2,7.43395797]
[1764558111856,0.002,2840.3,2840.2,1.40555116]
[1764558112045,0.002,2840.3,2840.2,0.03520878]
[1764558112374,0.002,2840.3,2840.2,0.51040878]
[1764558113276,0.002,2840.3,2840.0,0.72559411]
[1764558113277,0.4756,2840.3,2840.0,0.72559411]
[1764558113480,0.4699,2840.1,2839.1,0.001]
[1764558113653,0.1012,2839.8,2839.1,0.001]
[1764558113853,0.8702,2839.7,2839.1,0.001]
[1764558114058,3.52162276,2839.6,2839.1,0.001]
[1764558114768,3.97902276,2839.6,2839.1,0.001]
[1764558115189,0.4574,2839.5,2839.1,0.001]
[1764558116263,3.52162276,2839.6,2839.1,0.001]
[1764558116492,3.97902276,2839.6,2839.1,0.001]
[1764558116783,7.50064552,2839.6,2839.1,0.001]
[1764558116967,7.04324552,2839.6,2839.1,0.001]
[1764558117170,0.4736,2839.2,2839.1,0.001]
[1764558117371,0.1878,2839.9,2839.1,0.182]
[1764558117571,0.6452,2839.9,2839.1,0.001]
[1764558117794,0.99587996,2839.9,2839.1,0.001]
[1764558117945,0.4736,2839.2,2839.1,0.001]
[1764558118266,4.2207189,2839.2,2839.1,0.001]
[1764558118471,4.6781189,2839.2,2839.1,0.001]
[1764558118654,5.85032295,2839.2,2839.1,0.001]
[1764558119055,15.45500255,2839.2,2839.1,0.001]
[1764558119468,0.0941,2838.1,2838.0,0.00082363]
[1764558119674,0.3191,2838.1,2838.0,0.00082363]
[1764558119878,0.7765,2838.1,2838.0,0.00082363]
[1764558120258,4.29998402,2838.1,2838.0,0.00082363]
[1764558120462,3.84258402,2838.1,2838.0,0.00082363]
[1764558120684,0.3191,2838.1,2838.0,0.00082363]
[1764558120882,3.84258402,2838.1,2838.0,0.00082363]
[1764558121181,4.29998402,2838.1,2838.0,0.00082363]
[1764558122281,0.4574,2838.6,2838.0,0.00082363]
[1764558122451,0.225,2838.5,2838.0,0.48822363]
[1764558123178,0.6824,2838.5,2838.0,0.00082363]
[1764558123576,0.225,2838.4,2838.0,0.00082363]
[1764558123874,0.225,2838.3,2838.0,0.00082363]
[1764558124185,3.98001513,2838.9,2838.1,0.0564]
[1764558124500,0.95059411,2838.8,2838.3,0.4874]
[1764558125307,0.72559411,2839.0,2838.4,0.4757]
[1764558125457,0.72559411,2839.0,2838.1,0.0564]
[1764558125458,0.6824,2838.9,2838.1,0.0564]
[1764558125656,0.4736,2838.5,2838.0,0.00082363]
[1764558125859,0.225,2838.4,2838.0,0.00082363]
[1764558126057,0.6824,2838.4,2838.0,0.00082363]
[1764558126256,4.20553,2838.4,2838.0,0.00082363]
[1764558128156,0.72559411,2838.3,2838.0,0.00082363]
[1764558128360,3.52335987,2838.2,2838.0,0.00082363]
[1764558128985,1.18299411,2838.3,2838.0,0.00082363]
[1764558128986,0.72559411,2838.3,2838.0,0.00082363]
[1764558129185,0.225,2838.2,2838.0,0.00082363]
[1764558129995,0.931,2838.1,2838.0,0.00082363]
[1764558130364,4.45448402,2838.1,2838.0,0.00082363]
[1764558131187,5.53075809,2838.1,2838.0,0.00082363]
[1764558132069,0.405504,2837.9,2837.7,0.001]
[1764558132291,1.07618396,2837.8,2837.7,0.001]
[1764558132486,5.55155238,2837.8,2837.7,0.001]
[1764558132695,6.00895238,2837.8,2837.7,0.001]
[1764558134271,5.02685061,2837.8,2837.7,0.001]
[1764558134465,4.25035061,2837.8,2837.7,0.001]
[1764558134667,4.47535061,2837.8,2837.7,0.001]
[1764558134863,4.93275061,2837.8,2837.7,0.001]
[1764558135896,5.05843057,2837.8,2837.7,0.001]
[1764558136107,4.83275061,2837.8,2837.7,0.001]
[1764558136302,5.08135061,2837.8,2837.7,0.001]
[1764558136478,5.30635061,2837.8,2837.7,0.001]
[1764558136867,5.65703057,2837.8,2837.7,0.001]
[1764558137067,5.30635061,2837.8,2837.7,0.001]
[1764558138401,0.593304,2838.5,2837.7,0.4884]
[1764558138402,3.52311161,2838.4,2837.7,0.4884]
[1764558138700,0.225,2838.3,2837.8,0.4874]
[1764558138901,3.52311161,2838.4,2837.8,0.4874]
[1764558139064,0.225,2838.3,2837.9,0.92450772]
[1764558139269,0.225,2838.3,2837.8,0.52263856]
[1764558139469,0.6824,2838.3,2837.7,0.001]
[1764558139668,0.225,2838.3,2837.7,0.5119398]
[1764558140091,0.225,2838.3,2837.7,0.001]
[1764558140407,0.6824,2838.3,2837.7,0.001]
[1764558140906,7.8547997,2838.2,2837.7,0.001]
[1764558141508,3.52515025,2838.4,2837.7,0.4767]
[1764558141719,3.52515025,2838.4,2838.1,0.4874]
[1764558141720,0.225,2838.3,2838.1,0.4874]
[1764558141883,0.225,2838.3,2837.7,0.4767]
[1764558142765,3.74827547,2838.3,2837.7,0.4767]
[1764558142996,0.225,2838.3,2837.7,4.00067115]
[1764558143203,0.002,2838.4,2838.2,0.557]
[1764558143404,0.002,2838.4,2838.3,0.4997]
[1764558143570,3.75011161,2838.4,2838.0,0.1988]
[1764558143770,0.002,2838.4,2838.3,0.4997]
[1764558143976,0.227,2838.4,2838.3,0.981]
[1764558144401,0.227,2838.4,2838.3,0.4997]
[1764558144975,0.002,2838.4,2838.3,0.9692]
[1764558145308,0.002,2838.4,2838.3,0.94894772]
[1764558145510,0.002,2838.4,2837.8,0.40016712]
[1764558145511,4.01971161,2838.4,2837.8,0.40016712]
[1764558145875,4.01971161,2838.4,2837.8,3.92400801]
[1764558145876,0.4966,2838.4,2837.8,3.92400801]
[1764558146019,0.002,2838.4,2837.8,4.39350801]
[1764558146187,0.002,2838.4,2837.8,7.91736451]
[1764558146387,0.002,2838.4,2838.3,0.456]
[1764558146895,0.002,2838.4,2838.3,4.44873573]
[1764558147099,0.002,2838.4,2838.3,5.24594543]
[1764558147525,0.002,2838.4,2838.3,0.7972097]
[1764558147709,0.002,2838.4,2838.3,0.9255]
[1764558148688,0.002,2838.4,2838.3,0.456]
[1764558149517,0.002,2838.4,2838.3,0.9255]
[1764558150326,0.002,2838.4,2837.8,1.19509411]
[1764558150534,0.002,2838.4,2838.3,0.456]
[1764558150738,0.002,2838.4,2837.9,0.4695]
[1764558150900,0.002,2838.4,2838.0,0.8242766]
[1764558151096,0.002,2838.4,2838.3,0.456]
[1764558151725,0.002,2838.4,2838.3,4.210922]
[1764558152990,0.002,2838.4,2838.3,4.93651611]
[1764558153197,0.002,2838.4,2838.3,14.54071719]
[1764558153500,0.002,2838.4,2838.3,10.40307726]
[1764558154122,0.002,2838.4,2838.3,11.24089026]
[1764558154500,0.002,2838.4,2838.3,8.99763526]
[1764558155239,0.002,2838.4,2838.3,16.32995226]
[1764558155934,0.002,2838.4,2838.3,11.22845226]
[1764558156139,0.002,2838.4,2838.3,6.98073726]
[1764558156337,0.002,2838.4,2838.3,7.96153784]
[1764558156824,0.002,2838.4,2838.3,5.17432984]
[1764558157216,0.002,2838.4,2838.3,10.16799684]
[1764558157414,0.002,2838.4,2838.3,4.44873573]
[1764558157633,0.002,2838.4,2838.3,10.06409573]
[1764558157816,0.002,2838.4,2838.0,4.34783272]
[1764558158005,0.4958,2838.4,2837.7,0.4705]
[1764558158340,0.4958,2838.4,2837.7,7.51843412]
[1764558158532,0.002,2838.4,2837.7,7.51843412]
[1764558158833,0.002,2838.4,2837.7,3.99445325]
[1764558159136,0.002,2838.4,2837.7,7.51843393]
[1764558159627,0.002,2838.4,2837.7,3.99445325]
[1764558159948,0.002,2838.4,2837.8,0.41929532]
[1764558161216,0.002,2838.4,2837.7,3.52495325]
[1764558161420,0.4958,2838.4,2837.7,3.52495325]
[1764558161616,0.002,2838.4,2837.7,7.04893393]